fUST/lending_fUST_20250717
["ID","MTS","AMOUNT","RATE_DAILY","PERIOD"]
[372633793,1752719449371,-6932.46,0.00019013,2]
[372633794,1752719449381,-2885.56,0.00019013,2]
[372633795,1752719449391,-557.44,0.00019013,2]
[372633796,1752719449401,-1225.84,0.00019013,2]
[372633797,1752719449411,-151.0,0.00019014,2]
[372633798,1752719449421,-460.0,0.00019014,2]
[372633799,1752719449431,-460.0,0.00019014,2]
[372633800,1752719449442,-460.0,0.00019014,2]
[372633801,1752719449451,-460.0,0.00019014,2]
[372633802,1752719449461,-873.14,0.00019014,2]
[372633803,1752719449471,-460.0,0.00019014,2]
[372633804,1752719449481,-600.01808855,0.00019014,2]
[372633805,1752719449491,-460.0,0.00019014,2]
[372633806,1752719449503,-472.64279094,0.00019014,2]
[372633807,1752719449513,-460.0,0.00019014,2]
[372633808,1752719449523,-460.0,0.00019014,2]
[372633809,1752719449534,-253.318865,0.00019016,2]
[372633810,1752719449544,-460.0,0.00019016,2]
[372633811,1752719449554,-405.13688,0.00019017,2]
[372633812,1752719449563,-405.13688,0.00019017,2]
[372633813,1752719449574,-151.0,0.00019018,2]
[372633814,1752719449584,-168.0,0.00019052,2]
[372633815,1752719449594,-1409.420029,0.00019062,2]
[372633816,1752719449604,-978.9848381,0.00019127,2]
[372633817,1752719449614,-10323.82667475,0.00019141,2]
[372633818,1752719449624,-1000.0,0.00019159,2]
[372633819,1752719449634,-151.0,0.00019176,2]
[372633820,1752719449644,-219.2951,0.00019176,2]
[372633821,1752719449654,-176.66688604,0.00019178,2]
[372633822,1752719449664,-500.0,0.00019178,2]
[372633823,1752719449674,-206.4464632,0.00019178,2]
[372633824,1752719449683,-204.0981621,0.00019185,2]
[372633825,1752719449693,-1817.903,0.00019195,2]
[372633826,1752719449703,-2000.0,0.000192,5]
[372633827,1752719449713,-178.44027188,0.000192,2]
[372633828,1752719449723,-160.0,0.00019239,2]
[372633829,1752719449733,-151.0,0.00019245,2]
[372633830,1752719449743,-198.99665788,0.00019245,2]
[372633831,1752719449854,-151.0,0.00019245,2]
[372633832,1752719449864,-198.90313588,0.00019245,2]
[372633833,1752719449874,-635.0,0.00019245,2]
[372633834,1752719449884,-151.0,0.00019245,2]
[372633835,1752719449894,-151.0,0.00019245,2]
[372633836,1752719449903,-1002.0,0.00019245,2]
[372633837,1752719449913,-151.0,0.00019245,2]
[372633838,1752719449923,-151.68187387,0.00019245,2]
[372633839,1752719449933,-151.88303825,0.00019245,2]
[372633840,1752719449942,-151.47809688,0.00019245,2]
[372633841,1752719449952,-500.0,0.00019245,2]
[372633842,1752719449961,-160.0,0.00019247,2]
[372633843,1752719449971,-160.0,0.00019247,2]
[372633844,1752719449980,-230.85589339,0.00019247,2]
[372633845,1752719449990,-160.0,0.00019248,2]
[372633846,1752719449999,-160.0,0.00019248,2]
[372633847,1752719450009,-839.15451687,0.00019248,2]
[372633848,1752719450019,-160.0,0.00019248,2]
[372633849,1752719450029,-12607.95677342,0.00019248,2]
[372633850,1752719450039,-214.44804168,0.00019248,2]
[372633851,1752719450048,-525.67742785,0.00019248,2]
[372633852,1752719450058,-160.0,0.00019248,2]
[372633853,1752719450068,-215.59244943,0.00019248,2]
[372633854,1752719450078,-160.0,0.00019248,2]
[372633855,1752719450087,-160.0,0.00019248,2]
[372633856,1752719450097,-160.0,0.00019248,2]
[372633857,1752719450107,-160.0,0.00019248,2]
[372633858,1752719450117,-476.16111942,0.00019248,2]
[372633859,1752719450127,-460.0,0.00019277,2]
[372633860,1752719450141,-460.0,0.00019277,2]
[372633861,1752719450151,-460.0,0.00019278,2]
[372633862,1752719450160,-460.0,0.00019278,2]
[372633863,1752719450170,-460.0,0.00019278,2]
[372633864,1752719450181,-6803.47,0.00019278,2]
[372633865,1752719450191,-3924.16,0.00019278,2]
[372633866,1752719450201,-969.65,0.00019278,2]
[372633867,1752719450211,-491.17,0.00019278,2]
[372633868,1752719450221,-460.0,0.00019278,2]
[372633869,1752719450231,-3078.04,0.00019278,2]
[372633870,1752719450241,-2574.76,0.00019278,2]
[372633871,1752719450251,-460.0,0.00019278,2]
[372633872,1752719450260,-467.62437268,0.00019278,2]
[372633873,1752719450270,-2463.94,0.00019278,2]
[372633874,1752719450280,-749.21,0.00019278,2]
[372633875,1752719450289,-460.0,0.00019278,2]
[372633876,1752719450299,-460.0,0.00019279,2]
[372633877,1752719450310,-460.0,0.0001928,2]
[372633878,1752719450320,-1864.41,0.0001928,2]
[372633879,1752719450330,-529.36,0.0001928,2]
[372633880,1752719450340,-460.0,0.0001928,2]
[372633881,1752719450350,-741.74,0.0001928,2]
[372633882,1752719450360,-460.0,0.0001928,2]
[372633883,1752719450376,-653.85,0.0001928,2]
[372633884,1752719450397,-668.12,0.0001928,2]
[372633885,1752719450408,-460.0,0.0001928,2]
[372633886,1752719450418,-460.0,0.0001928,2]
[372633887,1752719450429,-719.56,0.0001928,2]
[372633888,1752719450439,-1314.57,0.0001928,2]
[372633889,1752719450450,-460.0,0.0001928,2]
[372633890,1752719450460,-691.68,0.0001928,2]
[372633891,1752719450470,-424.25015195,0.0001928,2]
[372633892,1752719450480,-460.0,0.0001928,2]
[372633893,1752719450490,-460.0,0.0001928,2]
[372633894,1752719450501,-460.0,0.0001928,2]
[372633895,1752719450511,-460.0,0.0001928,2]
[372633896,1752719450523,-1569.29,0.0001928,2]
[372633897,1752719450533,-460.0,0.00019284,2]
[372633898,1752719450543,-469.39888662,0.00019284,2]
[372633899,1752719450553,-708.24,0.00019284,2]
[372633900,1752719450564,-460.0,0.00019284,2]
[372633901,1752719450574,-567.86,0.00019284,2]
[372633902,1752719450584,-460.0,0.00019284,2]
[372633903,1752719450594,-4688.52,0.00019284,2]
[372633904,1752719450604,-731.29,0.00019284,2]
[372633905,1752719450614,-460.0,0.00019285,2]
[372633906,1752719450624,-560.39,0.00019285,2]
[372633907,1752719450634,-745.09,0.00019285,2]
[372633908,1752719450644,-471.26017669,0.00019285,2]
[372633909,1752719450655,-801.54,0.00019285,2]
[372633910,1752719450665,-572.02,0.00019285,2]
[372633911,1752719450675,-467.13963551,0.00019285,2]
[372633912,1752719450685,-460.0,0.00019285,2]
[372633913,1752719450695,-495.28,0.00019285,2]
[372633914,1752719450705,-896.34,0.00019285,2]
[372633915,1752719450715,-151.0,0.00019285,2]
[372633916,1752719450725,-948.09,0.00019285,2]
[372633917,1752719450735,-460.0,0.00019285,2]
[372633918,1752719450745,-802.39,0.00019285,2]
[372633919,1752719450755,-528.16,0.00019285,2]
[372633920,1752719450766,-558.80890755,0.00019285,2]
[372633921,1752719450775,-460.0,0.00019285,2]
[372633922,1752719450785,-585.87,0.00019285,2]
[372633923,1752719450795,-460.0,0.00019285,2]
[372633924,1752719450806,-151.0,0.00019286,2]
[372633925,1752719450816,-151.0,0.00019286,2]
[372633926,1752719450826,-151.0,0.00019286,2]
[372633927,1752719450836,-151.0,0.00019286,2]
[372633928,1752719450845,-1881.04,0.00019286,2]
[372633929,1752719450855,-5155.26,0.00019286,2]
[372633930,1752719450865,-1817.41,0.00019286,2]
[372633931,1752719450875,-405.13688,0.00019287,2]
[372633932,1752719450886,-405.13688,0.00019287,2]
[372633933,1752719450896,-844.0,0.00019287,2]
[372633934,1752719450906,-1413.3,0.00019287,2]
[372633935,1752719450917,-460.0,0.00019287,2]
[372633936,1752719450927,-589.74523271,0.00019287,2]
[372633937,1752719450937,-2322.67,0.00019287,2]
[372633938,1752719450947,-559.87,0.00019287,2]
[372633939,1752719450957,-6932.46,0.00019287,2]
[372633940,1752719450967,-2885.56,0.00019287,2]
[372633941,1752719450977,-557.44,0.00019287,2]
[372633942,1752719450987,-1225.84,0.00019287,2]
[372633943,1752719450996,-151.0,0.00019288,2]
[372633944,1752719451006,-460.0,0.00019288,2]
[372633945,1752719451017,-460.0,0.00019288,2]
[372633946,1752719451027,-460.0,0.00019288,2]
[372633947,1752719451038,-460.0,0.00019288,2]
[372633948,1752719451048,-873.14,0.00019288,2]
[372633949,1752719451059,-460.0,0.00019288,2]
[372633950,1752719451069,-460.0,0.00019288,2]
[372633951,1752719451079,-460.0,0.00019288,2]
[372633952,1752719451089,-466.709448,0.00019288,2]
[372633953,1752719451099,-451.00584761,0.0001929,2]
[372633954,1752719451109,-405.13688,0.00019291,2]
[372633955,1752719451118,-405.13688,0.00019291,2]
[372633956,1752719451129,-151.0,0.00019291,2]
[372633957,1752719451143,-641.94763772,0.00019309,2]
[372633965,1752719516315,8013.38700249,0.00018084,2]
[372633966,1752719516346,10000.0,0.00018084,2]
[372633967,1752719516376,10000.0,0.00018084,2]
[372633968,1752719516407,10000.0,0.00018084,2]
[372633969,1752719516436,10000.0,0.00018084,2]
[372633970,1752719516468,10000.0,0.00018084,2]
[372633971,1752719516496,28316.767607,0.00018084,2]
[372633972,1752719517175,165.07630195,0.0001721,2]
[372633973,1752719517212,7554.94397165,0.0001721,2]
[372633980,1752719700194,11000.79545481,0.00018078,2]
[372633983,1752719791180,153.07362161,0.00018079,2]
[372633995,1752719931061,4977.5845444,0.00017317,2]
[372634000,1752720017298,153.07362157,0.00018079,2]
[372634002,1752720113099,253.029361,0.00013699,2]
[372634003,1752720117826,174.959706,0.0002589,50]
[372634009,1752720237851,153.07362157,0.00018078,2]
[372634020,1752720449498,153.07362157,0.00018076,2]
[372634021,1752720512316,5000.0,0.000181,2]
[372634088,1752720632232,-300.0,0.00018166,2]
[372634091,1752720632242,-1032.0,0.00018166,2]
[372634092,1752720632252,-4396.57476502,0.00018166,2]
[372634141,1752720637772,-603.42523498,0.00018166,2]
[372634142,1752720637781,-500.0,0.00018167,2]
[372634143,1752720637791,-209.76764598,0.00018167,2]
[372634144,1752720637800,-575.70972807,0.00018167,2]
[372634145,1752720637810,-179.14370914,0.00018167,2]
[372634146,1752720637819,-193.2431822,0.00018167,2]
[372634147,1752720637829,-177.56278239,0.00018167,2]
[372634148,1752720637838,-207.4,0.00018168,2]
[372634149,1752720637847,-500.0,0.00018168,2]
[372634150,1752720637857,-359.61644997,0.00018168,2]
[372634151,1752720637867,-151.0,0.00018168,2]
[372634152,1752720637877,-151.0,0.00018168,2]
[372634153,1752720637887,-151.0,0.00018168,2]
[372634154,1752720637896,-151.0,0.00018168,2]
[372634155,1752720637906,-151.0,0.00018168,2]
[372634156,1752720637915,-151.0,0.00018168,2]
[372634157,1752720637925,-151.0,0.00018168,2]
[372634158,1752720637934,-151.0,0.00018168,2]
[372634159,1752720637943,-1235.38728721,0.00018168,2]
[372634160,1752720637955,-6783.42890571,0.00018168,2]
[372634161,1752720637967,-3270.39212568,0.00018168,2]
[372634162,1752720637984,-2407.94869099,0.00018168,2]
[372634163,1752720637994,-175.01,0.00018172,3]
[372634164,1752720638003,-460.0,0.00018172,2]
[372634165,1752720638013,-460.0,0.00018172,2]
[372634166,1752720638022,-461.66793134,0.00018172,2]
[372634167,1752720638032,-460.0,0.00018173,2]
[372634168,1752720638041,-461.89944722,0.00018173,2]
[372634169,1752720638051,-464.6832793,0.00018173,2]
[372634170,1752720638062,-332.9465847,0.00018173,2]
[372634171,1752720638071,-462.09821775,0.00018173,2]
[372634172,1752720638081,-460.0,0.00018173,2]
[372634173,1752720638091,-56.02324873,0.00018173,2]
[372634187,1752720640077,-166.02997863,0.00018172,2]
[372634188,1752720640088,-403.97675127,0.00018173,2]
[372634189,1752720640099,-460.0,0.00018173,2]
[372634190,1752720640108,-460.0,0.00018173,2]
[372634192,1752720640118,-79.81735439,0.00018173,2]
[372634193,1752720640135,-380.18264561,0.00018173,2]
[372634194,1752720640145,-2929.27,0.00018173,2]
[372634195,1752720640155,-119.28328037,0.00018173,2]
[372634196,1752720640167,-340.71671963,0.00018173,2]
[372634198,1752720640176,-434.05328037,0.00018174,3]
[372634199,1752720640188,-190.80671963,0.00018174,3]
[372634200,1752720640198,-312.43,0.00018174,3]
[372634201,1752720640208,-156.22,0.00018174,3]
[372634202,1752720640217,-273.78803262,0.00018174,3]
[372634203,1752720640229,-194.89196738,0.00018174,3]
[372634205,1752720640239,-221.76293598,0.00018175,2]
[372634206,1752720640251,-278.23706402,0.00018175,2]
[372634207,1752720640260,-62.12793598,0.00018175,2]
[372634208,1752720642894,-275.5607214,0.00018175,2]
[372634210,1752720642947,-162.31134262,0.00018175,2]
[372634211,1752720642957,-379.76365738,0.00018175,2]
[372634212,1752720644951,153.07362157,0.00018073,2]
[372634348,1752720826746,153.07362157,0.00018073,2]
[372634356,1752720992136,153.07362157,0.00018072,2]
[372634362,1752721139795,250.0,0.00017976,2]
[372634363,1752721147319,153.07362157,0.00018071,2]
[372634365,1752721213497,248.862942,0.00013699,2]
[372634370,1752721225798,9324.03,0.00025905,60]
[372634425,1752721694923,3175.21044593,0.00017858,2]
[372634453,1752721821777,170.91146879,0.00018065,2]
[372634454,1752721822684,-164.8331603,0.00018116,2]
[372634455,1752721824965,-215.58438083,0.00018116,2]
[372634456,1752721828411,5848.86790014,0.00018075,2]
[372634457,1752721828453,1874.64672198,0.00018075,2]
[372634459,1752721830260,-152.60472736,0.00018116,2]
[372634461,1752721832107,-1217.97773151,0.00018116,2]
[372634462,1752721832117,-300.0,0.00018163,2]
[372634463,1752721832127,-460.0,0.00018164,2]
[372634464,1752721832137,-500.0,0.00018164,2]
[372634465,1752721832146,-500.0,0.00018164,2]
[372634466,1752721832156,-500.0,0.00018164,2]
[372634467,1752721832165,-500.0,0.00018164,2]
[372634468,1752721832175,-363.50345888,0.00018164,2]
[372634469,1752721832184,-500.0,0.00018164,2]
[372634470,1752721832194,-500.0,0.00018164,2]
[372634471,1752721832203,-500.0,0.00018164,2]
[372634472,1752721832213,-500.0,0.00018164,2]
[372634473,1752721832222,-460.0,0.00018164,2]
[372634474,1752721832232,-460.0,0.00018164,2]
[372634475,1752721832241,-460.0,0.00018164,2]
[372634476,1752721832251,-460.0,0.00018164,2]
[372634477,1752721832261,-460.0,0.00018164,2]
[372634478,1752721832271,-480.26,0.00018164,2]
[372634479,1752721832282,-460.0,0.00018164,2]
[372634480,1752721832292,-308.86235924,0.00018164,2]
[372634481,1752721832302,-460.0,0.00018164,2]
[372634482,1752721832312,-460.0,0.00018164,2]
[372634483,1752721832322,-1027.1011879,0.00018164,2]
[372634484,1752721832335,-2133.6388121,0.00018164,2]
[372634485,1752721832345,-460.46713278,0.00018164,2]
[372634486,1752721832354,-460.0,0.00018164,2]
[372634487,1752721832364,-460.0,0.00018164,2]
[372634488,1752721832374,-460.0,0.00018164,2]
[372634489,1752721832384,-505.48432054,0.00018165,2]
[372634490,1752721832394,-308.55396054,0.00018165,2]
[372634506,1752721838929,-500.0,0.00018165,2]
[372634507,1752721838939,-691.44603946,0.00018165,2]
[372634508,1752721838949,-460.0,0.00018165,2]
[372634509,1752721838960,-576.43038979,0.00018165,2]
[372634510,1752721838970,-460.0,0.00018165,2]
[372634511,1752721839092,-460.0,0.00018165,2]
[372634512,1752721839102,-461.52954051,0.00018165,2]
[372634513,1752721839112,-460.0,0.00018165,2]
[372634514,1752721839122,-460.0,0.00018165,2]
[372634515,1752721839132,-511.31718746,0.00018165,2]
[372634516,1752721839141,-460.0,0.00018165,2]
[372634517,1752721839151,-460.0,0.00018165,2]
[372634518,1752721839161,-606.06332936,0.00018165,2]
[372634519,1752721839170,-460.0,0.00018165,2]
[372634520,1752721839179,-463.33023578,0.00018165,2]
[372634521,1752721839189,-461.06709247,0.00018165,2]
[372634522,1752721839199,-461.16635307,0.00018165,2]
[372634523,1752721839210,-7086.7,0.00018165,2]
[372634524,1752721839220,-460.84118514,0.00018165,2]
[372634525,1752721839229,-460.0,0.00018165,2]
[372634526,1752721839239,-461.16201749,0.00018165,2]
[372634527,1752721839250,-460.0,0.00018165,2]
[372634528,1752721839259,-460.0,0.00018165,2]
[372634529,1752721839271,-460.90525251,0.00018165,2]
[372634530,1752721839282,-4330.62,0.00018165,2]
[372634531,1752721839291,-487.22409962,0.00018165,2]
[372634532,1752721839301,-460.0,0.00018165,2]
[372634533,1752721839311,-460.0,0.00018165,2]
[372634534,1752721839320,-460.0,0.00018165,2]
[372634535,1752721839330,-1130.34,0.00018165,2]
[372634536,1752721839339,-208.51890481,0.00018165,2]
[372634537,1752721839351,-460.0,0.00018165,2]
[372634538,1752721839362,-460.0,0.00018165,2]
[372634539,1752721839371,-460.0,0.00018165,2]
[372634540,1752721839381,-460.0,0.00018165,2]
[372634541,1752721839391,-460.0,0.00018165,2]
[372634542,1752721839400,-645.76,0.00018165,2]
[372634543,1752721839409,-460.0,0.00018165,2]
[372634544,1752721839419,-460.0,0.00018165,2]
[372634545,1752721839429,-3065.11,0.00018165,2]
[372634546,1752721839438,-460.0,0.00018165,2]
[372634547,1752721839447,-3304.66,0.00018165,2]
[372634548,1752721839458,-460.0,0.00018165,2]
[372634549,1752721839469,-460.0,0.00018165,2]
[372634550,1752721839480,-2477.9,0.00018165,2]
[372634551,1752721839489,-796.26,0.00018165,2]
[372634552,1752721839499,-460.0,0.00018165,2]
[372634553,1752721839509,-460.0,0.00018165,2]
[372634554,1752721839519,-2385.51,0.00018165,2]
[372634555,1752721839529,-647.73633939,0.00018166,2]
[372634556,1752721839538,-516.27018122,0.00018166,2]
[372634557,1752721839547,-460.97488387,0.00018166,2]
[372634558,1752721839557,-460.0,0.00018166,2]
[372634559,1752721839567,-460.0,0.00018166,2]
[372634560,1752721839576,-460.0,0.00018166,2]
[372634561,1752721839586,-460.0,0.00018166,2]
[372634562,1752721839596,-460.0,0.00018166,2]
[372634563,1752721839606,-462.67202119,0.00018166,2]
[372634564,1752721839616,-429.59949589,0.00018166,2]
[372634565,1752721839626,-460.0,0.00018166,2]
[372634566,1752721839635,-460.0,0.00018166,2]
[372634567,1752721839645,-460.0,0.00018166,2]
[372634568,1752721839655,-461.02338884,0.00018166,2]
[372634569,1752721839664,-463.67086773,0.00018166,2]
[372634570,1752721839673,-460.0,0.00018166,2]
[372634571,1752721839683,-464.19030587,0.00018166,2]
[372634572,1752721839692,-460.0,0.00018166,2]
[372634573,1752721839702,-460.0,0.00018166,2]
[372634574,1752721839713,-460.0,0.00018166,2]
[372634576,1752721839722,-460.0,0.00018166,2]
[372634577,1752721839732,-460.0,0.00018166,2]
[372634578,1752721839742,-460.0,0.00018166,2]
[372634579,1752721839752,-460.0,0.00018166,2]
[372634580,1752721839762,-460.0,0.00018166,2]
[372634582,1752721839771,-460.0,0.00018166,2]
[372634583,1752721839781,-461.16560331,0.00018166,2]
[372634586,1752721839792,-464.16727029,0.00018166,2]
[372634587,1752721839802,-460.0,0.00018166,2]
[372634588,1752721839814,-460.0,0.00018166,2]
[372634589,1752721839827,-460.0,0.00018166,2]
[372634591,1752721839837,-460.0,0.00018166,2]
[372634592,1752721839847,-460.0,0.00018166,2]
[372634593,1752721839857,-460.0,0.00018166,2]
[372634594,1752721839869,-460.0,0.00018166,2]
[372634595,1752721839878,-173.88971162,0.00018166,2]
[372634596,1752721839888,-460.0,0.00018166,2]
[372634597,1752721839900,-463.97586269,0.00018166,2]
[372634598,1752721839911,-462.60533867,0.00018166,2]
[372634599,1752721839923,-460.0,0.00018166,2]
[372634600,1752721839933,-609.11,0.00018166,2]
[372634601,1752721839943,-460.0,0.00018166,2]
[372634602,1752721839953,-460.0,0.00018166,2]
[372634603,1752721839966,-460.0,0.00018166,2]
[372634604,1752721839975,-463.91254785,0.00018166,2]
[372634605,1752721839985,-460.0,0.00018166,2]
[372634606,1752721839995,-460.0,0.00018166,2]
[372634607,1752721840004,-460.0,0.00018166,2]
[372634608,1752721840014,-577.80975664,0.00018166,2]
[372634609,1752721840024,-460.0,0.00018166,2]
[372634610,1752721840033,-460.0,0.00018166,2]
[372634611,1752721840043,-457.29574229,0.00018166,2]
[372634612,1752721840052,-460.0,0.00018166,2]
[372634613,1752721840063,-460.0,0.00018166,2]
[372634614,1752721840075,-461.20924833,0.00018166,2]
[372634615,1752721840084,-460.0,0.00018166,2]
[372634616,1752721840095,-460.0,0.00018166,2]
[372634617,1752721840104,-460.0,0.00018166,2]
[372634618,1752721840114,-460.0,0.00018166,2]
[372634619,1752721840123,-460.0,0.00018166,2]
[372634620,1752721840133,-460.0,0.00018166,2]
[372634621,1752721840142,-460.0,0.00018166,2]
[372634623,1752721840152,-638.36,0.00018166,2]
[372634624,1752721840161,-857.57,0.00018166,2]
[372634625,1752721840171,-461.83435576,0.00018166,2]
[372634626,1752721840182,-460.0,0.00018166,2]
[372634627,1752721840191,-460.0,0.00018166,2]
[372634628,1752721840201,-460.0,0.00018166,2]
[372634629,1752721840213,-257.012157,0.00018166,2]
[372634630,1752721840223,-460.0,0.00018166,2]
[372634631,1752721840233,-460.0,0.00018166,2]
[372634632,1752721840243,-460.0,0.00018166,2]
[372634633,1752721840253,-460.0,0.00018166,2]
[372634634,1752721840262,-460.0,0.00018166,2]
[372634635,1752721840272,-778.05,0.00018166,2]
[372634636,1752721840281,-460.0,0.00018166,2]
[372634637,1752721840290,-460.0,0.00018166,2]
[372634639,1752721840300,-460.0,0.00018166,2]
[372634640,1752721840309,-460.0,0.00018166,2]
[372634641,1752721840319,-786.22,0.00018166,2]
[372634642,1752721840329,-460.0,0.00018166,2]
[372634643,1752721840339,-816.29,0.00018166,2]
[372634644,1752721840349,-460.0,0.00018166,2]
[372634645,1752721840358,-1419.46,0.00018166,2]
[372634646,1752721840368,-462.02494176,0.00018166,2]
[372634647,1752721840377,-462.15664694,0.00018166,2]
[372634648,1752721840387,-460.0,0.00018166,2]
[372634649,1752721840398,-460.0,0.00018166,2]
[372634650,1752721840408,-843.09,0.00018166,2]
[372634651,1752721840417,-460.0,0.00018166,2]
[372634652,1752721840427,-460.0,0.00018166,2]
[372634653,1752721840437,-460.0,0.00018166,2]
[372634654,1752721840447,-460.0,0.00018166,2]
[372634655,1752721840456,-460.0,0.00018166,2]
[372634656,1752721840468,-460.0,0.00018166,2]
[372634657,1752721840478,-310.55750851,0.00018166,2]
[372634658,1752721840487,-460.0,0.00018166,2]
[372634659,1752721840497,-460.0,0.00018166,2]
[372634660,1752721840507,-460.0,0.00018166,2]
[372634661,1752721840516,-460.0,0.00018166,2]
[372634662,1752721840526,-460.0,0.00018166,2]
[372634663,1752721840535,-460.0,0.00018166,2]
[372634664,1752721840545,-460.0,0.00018166,2]
[372634665,1752721840554,-460.0,0.00018166,2]
[372634666,1752721840563,-460.0,0.00018166,2]
[372634667,1752721840572,-441.68812044,0.00018166,2]
[372634668,1752721840582,-460.0,0.00018166,2]
[372634669,1752721840591,-460.0,0.00018166,2]
[372634670,1752721840601,-461.58783907,0.00018166,2]
[372634671,1752721840611,-460.0,0.00018166,2]
[372634672,1752721840621,-460.0,0.00018166,2]
[372634673,1752721840631,-461.60250096,0.00018166,2]
[372634674,1752721840641,-175.0,0.00018166,3]
[372634675,1752721840650,-525.05,0.00018166,3]
[372634676,1752721840659,-460.0,0.00018167,2]
[372634677,1752721840669,-461.33167742,0.00018167,2]
[372634678,1752721840680,-460.0,0.00018167,2]
[372634679,1752721840690,-460.87703867,0.00018167,2]
[372634680,1752721840700,-460.0,0.00018167,2]
[372634681,1752721840710,-460.0,0.00018167,2]
[372634682,1752721840720,-585.07,0.00018167,2]
[372634683,1752721840729,-6141.92,0.00018167,2]
[372634684,1752721840739,-1263.65,0.00018167,2]
[372634685,1752721840749,-2338.02,0.00018167,2]
[372634686,1752721840759,-460.0,0.00018167,2]
[372634687,1752721840769,-466.31556237,0.00018167,2]
[372634688,1752721840780,-2992.09,0.00018167,2]
[372634689,1752721840789,-460.0,0.00018167,2]
[372634690,1752721840799,-472.77,0.00018167,2]
[372634691,1752721840808,-276.8,0.00018169,3]
[372634692,1752721840820,-830.42,0.00018169,3]
[372634693,1752721840830,-553.59,0.0001817,3]
[372634694,1752721840840,-460.0,0.00018172,2]
[372634695,1752721840850,-460.0,0.00018172,2]
[372634696,1752721840859,-461.662399,0.00018172,2]
[372634697,1752721840868,-460.0,0.00018172,2]
[372634698,1752721840878,-460.48600477,0.00018172,2]
[372634699,1752721840888,-460.0,0.00018172,2]
[372634701,1752721840899,-460.0,0.00018172,2]
[372634702,1752721840910,-460.0,0.00018172,2]
[372634703,1752721840919,-460.0,0.00018172,2]
[372634704,1752721840929,-460.0,0.00018172,2]
[372634705,1752721840938,-460.57212985,0.00018172,2]
[372634706,1752721840948,-461.20381031,0.00018172,2]
[372634707,1752721840957,-460.0,0.00018172,2]
[372634708,1752721840969,-460.0,0.00018172,2]
[372634709,1752721840979,-460.0,0.00018172,2]
[372634710,1752721840988,-543.52,0.00018172,2]
[372634711,1752721840998,-460.0,0.00018172,2]
[372634712,1752721841007,-487.93,0.00018172,2]
[372634713,1752721841017,-699.72,0.00018172,2]
[372634714,1752721841026,-460.0,0.00018172,2]
[372634715,1752721841037,-727.89,0.00018172,2]
[372634716,1752721841046,-460.0,0.00018172,2]
[372634717,1752721841056,-460.0,0.00018172,2]
[372634718,1752721841065,-554.97,0.00018172,2]
[372634719,1752721841075,-936.36,0.00018172,2]
[372634720,1752721841083,-826.17,0.00018172,2]
[372634721,1752721841094,-460.0,0.00018172,2]
[372634722,1752721841104,-460.0,0.00018172,2]
[372634723,1752721841113,-460.0,0.00018172,2]
[372634724,1752721841123,-460.0,0.00018172,2]
[372634725,1752721841133,-460.0,0.00018172,2]
[372634726,1752721841142,-460.0,0.00018172,2]
[372634727,1752721841152,-460.0,0.00018172,2]
[372634728,1752721841162,-896.59,0.00018172,2]
[372634729,1752721841171,-601.2,0.00018172,2]